bitfinex/quotes_BTCUSD_20240729
["timestamp","ask_amount","ask_price","bid_price","bid_amount"]
[1722214868884,0.08580008,68956.0,68955.0,1.54586558]
[1722214869115,0.08580008,68956.0,68955.0,1.66188258]
[1722214869327,0.00084,68962.0,68961.0,0.13840858]
[1722214869570,0.002,68969.0,68961.0,0.13840858]
[1722214869571,0.06506033,68976.0,68975.0,0.05]
[1722214869786,0.08874711,68979.0,68975.0,0.52247086]
[1722214869787,0.06506033,68977.0,68975.0,0.52247086]
[1722214869987,0.002,68979.0,68975.0,0.52247086]
[1722214869988,0.01259142,68976.0,68975.0,0.52247086]
[1722214870186,0.12857342,68976.0,68975.0,0.52247086]
[1722214870452,0.59250142,68976.0,68975.0,0.52247086]
[1722214870830,0.347946,68976.0,68975.0,0.52247086]
[1722214872018,0.347946,68976.0,68975.0,0.81243086]
[1722214872384,0.46991501,68976.0,68975.0,0.81243086]
[1722214872558,0.37071555,68976.0,68975.0,0.81243086]
[1722214872732,0.45729751,68976.0,68975.0,0.81243086]
[1722214873121,0.37071555,68976.0,68975.0,0.81243086]
[1722214873545,0.20366802,68976.0,68975.0,0.81243086]
[1722214873956,0.37071555,68976.0,68975.0,0.81243086]
[1722214874403,0.44822337,68976.0,68975.0,0.81243086]
[1722214874715,0.44822344,68976.0,68975.0,0.81243086]
[1722214874925,0.38330697,68976.0,68975.0,0.81243086]
[1722214875142,0.38330697,68976.0,68975.0,0.77691]
[1722214875143,0.91561644,68976.0,68975.0,0.77691]
[1722214875339,1.15826397,68976.0,68975.0,0.77691]
[1722214875511,1.13549442,68976.0,68975.0,0.77691]
[1722214875741,1.05258816,68976.0,68975.0,0.77691]
[1722214875932,1.05258816,68976.0,68975.0,0.854601]
[1722214875933,0.94468927,68976.0,68975.0,0.854601]
[1722214876244,0.85816542,68976.0,68975.0,0.77691]
[1722214876682,0.94468182,68976.0,68975.0,0.77691]
[1722214876870,0.94467639,68976.0,68975.0,0.77691]
[1722214877071,0.85816542,68976.0,68975.0,0.77691]
[1722214877228,0.87579219,68976.0,68975.0,0.77691]
[1722214877436,0.87579219,68976.0,68975.0,0.854601]
[1722214877623,0.75172819,68976.0,68975.0,0.854601]
[1722214877822,0.81659816,68976.0,68975.0,0.854601]
[1722214878267,0.81659859,68976.0,68975.0,0.854601]
[1722214878678,0.77449699,68976.0,68975.0,0.854601]
[1722214878903,0.77449699,68976.0,68975.0,0.77691]
[1722214878904,0.75172635,68976.0,68975.0,0.77691]
[1722214879328,1.12188854,68976.0,68975.0,0.77691]
[1722214879580,1.14351248,68976.0,68975.0,0.77691]
[1722214879784,1.03539279,68976.0,68975.0,0.77691]
[1722214880239,2.09026179,68976.0,68975.0,0.77691]
[1722214880634,2.32222579,68976.0,68975.0,0.77691]
[1722214881021,2.32183595,68976.0,68975.0,0.77691]
[1722214881380,2.36996148,68976.0,68975.0,0.77691]
[1722214881601,2.31996148,68976.0,68975.0,0.77691]
[1722214882302,2.34273561,68976.0,68975.0,0.77691]
[1722214883470,2.11077161,68976.0,68975.0,0.854601]
[1722214883696,2.08799748,68976.0,68975.0,0.854601]
[1722214883939,2.31996148,68976.0,68975.0,0.854601]
[1722214884135,2.31997203,68976.0,68975.0,0.77691]
[1722214884306,2.30738061,68976.0,68975.0,0.77691]
[1722214884506,2.31997203,68976.0,68975.0,0.77691]
[1722214885333,1.57098478,68976.0,68975.0,0.77691]
[1722214885627,1.15613903,68976.0,68975.0,0.77691]
[1722214885805,1.42376503,68976.0,68975.0,0.77691]
[1722214886007,1.42376503,68976.0,68975.0,0.854601]
[1722214886774,1.44653836,68976.0,68975.0,0.854601]
[1722214886975,1.44653836,68976.0,68975.0,0.77691]
[1722214887175,1.42480864,68976.0,68975.0,0.77691]
[1722214887612,0.99358264,68976.0,68975.0,0.77691]
[1722214887955,0.76061864,68976.0,68975.0,0.77691]
[1722214888170,0.76061864,68976.0,68975.0,0.861161]
[1722214888171,0.76161864,68976.0,68975.0,0.861161]
[1722214888649,0.76061864,68976.0,68975.0,0.861161]
[1722214888957,0.52865464,68976.0,68975.0,0.861161]
[1722214889382,0.55861306,68976.0,68975.0,0.861161]
[1722214889581,0.42865464,68976.0,68975.0,0.861161]
[1722214889781,0.19669064,68976.0,68975.0,0.861161]
[1722214889928,0.19921475,68976.0,68975.0,0.861161]
[1722214890131,0.22198645,68976.0,68975.0,0.861161]
[1722214890359,0.10809696,68976.0,68975.0,0.861161]
[1722214890566,0.07273384,68976.0,68975.0,0.937661]
[1722214890777,0.05475412,68976.0,68975.0,0.937661]
[1722214890976,0.02030482,68976.0,68975.0,0.937661]
[1722214891177,0.00252411,68976.0,68975.0,0.937661]
[1722214891403,0.07234261,68976.0,68975.0,0.93760969]
[1722214891608,0.43035592,68976.0,68975.0,0.77685869]
[1722214891757,0.79329995,68976.0,68975.0,0.77685869]
[1722214891962,0.79582396,68976.0,68975.0,0.77685869]
[1722214892162,0.66584393,68976.0,68975.0,0.77685869]
[1722214892765,0.59602543,68976.0,68975.0,0.77685869]
[1722214892975,0.89774114,68976.0,68975.0,0.77685869]
[1722214893850,0.92051248,68976.0,68975.0,0.77685869]
[1722214894388,1.06686756,68976.0,68975.0,0.77685869]
[1722214894587,1.31586756,68976.0,68975.0,0.77685869]
[1722214894728,1.16951248,68976.0,68975.0,0.77685869]
[1722214894934,1.14674114,68976.0,68975.0,0.77685869]
[1722214895352,1.40170514,68976.0,68975.0,0.77685869]
[1722214895618,1.15270514,68976.0,68975.0,0.77685869]
[1722214895947,2.51640014,68976.0,68975.0,0.77685869]
[1722214896454,2.09500714,68976.0,68975.0,0.77685869]
[1722214896655,1.12125207,68976.0,68975.0,0.77685869]
[1722214896835,1.08221407,68976.0,68975.0,0.77778269]
[1722214897055,1.08305407,68976.0,68975.0,0.77778269]
[1722214897879,1.09824093,68976.0,68975.0,0.77778269]
[1722214898117,1.12101309,68976.0,68975.0,0.77778269]
[1722214898894,1.12101309,68976.0,68975.0,0.85533063]
[1722214899107,1.09824093,68976.0,68975.0,0.85533063]
[1722214899317,0.93700693,68976.0,68975.0,0.85533063]
[1722214899475,1.10257393,68976.0,68975.0,0.77778269]
[1722214899883,1.10246859,68976.0,68975.0,0.77778269]
[1722214900378,1.10246882,68976.0,68975.0,0.77778269]
[1722214900581,1.31624975,68976.0,68975.0,0.77778269]
[1722214900861,1.10246882,68976.0,68975.0,0.77778269]
[1722214901999,1.10246882,68976.0,68975.0,0.85556096]
[1722214902200,1.08246882,68976.0,68975.0,0.85556096]
[1722214902400,1.10524046,68976.0,68975.0,0.77778269]
[1722214903432,1.08246882,68976.0,68975.0,0.77778269]
[1722214904285,1.31443282,68976.0,68975.0,0.77778269]
[1722214904497,1.49593282,68976.0,68975.0,0.77778269]
[1722214905541,1.73147936,68976.0,68975.0,0.77778269]
[1722214906158,1.66159383,68976.0,68975.0,0.77778269]
[1722214906331,1.49443942,68976.0,68975.0,0.77778269]
[1722214906537,1.72998596,68976.0,68975.0,0.77778269]
[1722214906746,1.75275885,68976.0,68975.0,0.77778269]
[1722214907164,1.73021359,68976.0,68975.0,0.77778269]
[1722214908377,4.98518405,68976.0,68975.0,0.77778269]
[1722214908584,5.20003703,68976.0,68975.0,0.77778269]
[1722214908781,5.43549745,68976.0,68975.0,0.77778269]
[1722214909000,5.20003703,68976.0,68975.0,0.77778269]
[1722214909184,5.26543703,68976.0,68975.0,0.77778269]
[1722214909427,5.19681727,68976.0,68975.0,0.77778269]
[1722214909636,5.2478539,68976.0,68975.0,0.77778269]
[1722214909836,5.16955405,68976.0,68975.0,0.77778269]
[1722214910037,5.16955914,68976.0,68975.0,0.77778269]
[1722214910469,5.14678645,68976.0,68975.0,0.77778269]
[1722214910669,5.38227649,68976.0,68975.0,0.77778269]
[1722214911834,5.39084209,68976.0,68975.0,0.77778269]
[1722214912587,5.32307091,68976.0,68975.0,0.77778269]
[1722214912720,5.39045933,68976.0,68975.0,0.77778269]
[1722214912923,5.62242333,68976.0,68975.0,0.77778269]
[1722214913125,5.43693329,68976.0,68975.0,0.73066299]
[1722214913331,5.38693329,68976.0,68975.0,0.73066299]
[1722214913537,5.43693329,68976.0,68975.0,0.73066299]
[1722214913764,5.45970755,68976.0,68975.0,0.73066299]
[1722214913924,5.45970755,68976.0,68975.0,0.70788873]
[1722214914136,5.43693329,68976.0,68975.0,0.70788873]
[1722214914331,5.53693329,68976.0,68975.0,0.70788873]
[1722214914540,5.63693329,68976.0,68975.0,0.70788873]
[1722214914734,5.96889729,68976.0,68975.0,0.70788873]
[1722214915129,6.26889729,68976.0,68975.0,0.44111398]
[1722214915331,6.26889729,68976.0,68975.0,0.39012576]
[1722214915554,6.26889729,68976.0,68975.0,0.36059398]
[1722214915784,6.2872399,68976.0,68975.0,0.36059398]
[1722214916235,6.2872399,68976.0,68975.0,0.24460998]
[1722214916435,5.74924292,68976.0,68975.0,0.21561398]
[1722214916773,5.74924292,68976.0,68975.0,0.50557398]
[1722214916925,6.14924292,68976.0,68975.0,0.50557398]
[1722214917125,6.14924292,68976.0,68975.0,0.38958998]
[1722214917331,6.14924292,68976.0,68975.0,0.36059398]
[1722214917641,6.17201989,68976.0,68975.0,0.36059398]
[1722214917898,6.14924292,68976.0,68975.0,0.33781702]
[1722214918213,6.36258997,68976.0,68975.0,0.19283702]
[1722214918426,6.14924292,68976.0,68975.0,0.19283702]
[1722214918633,2.55410492,68976.0,68975.0,0.19283702]
[1722214918863,8.31413092,68976.0,68975.0,0.16592845]
[1722214919068,9.00920792,68976.0,68975.0,0.13693245]
[1722214919274,9.00920792,68976.0,68954.0,1.2e-07]
[1722214919275,1.43472842,68958.0,68954.0,1.2e-07]
[1722214919478,0.24566342,68944.0,68941.0,0.06540012]
[1722214919707,0.24566342,68944.0,68943.0,0.37259]
[1722214919708,0.91235488,68944.0,68943.0,0.37259]
[1722214919911,0.93006519,68944.0,68943.0,0.37259]
[1722214920352,0.93006519,68944.0,68943.0,0.66268]
[1722214921334,1.78119627,68944.0,68943.0,0.58018]
[1722214921684,1.54912427,68944.0,68943.0,0.58018]
[1722214921871,1.40942427,68944.0,68943.0,0.58018]
[1722214925103,1.39683285,68944.0,68943.0,0.58018]
[1722214925324,1.40942427,68944.0,68943.0,0.58018]
[1722214925901,1.39683285,68944.0,68943.0,0.58018]
[1722214926120,1.40942427,68944.0,68943.0,0.58018]
[1722214926547,1.40942427,68944.0,68943.0,0.72438]
[1722214926757,0.79754627,68944.0,68943.0,0.72438]
[1722214926963,0.73661605,68944.0,68943.0,0.72438]
[1722214927257,0.73757581,68944.0,68943.0,0.72438]
[1722214927458,0.96964781,68944.0,68943.0,0.72438]
[1722214927832,0.99242913,68944.0,68943.0,0.72438]
[1722214927994,0.96964781,68944.0,68943.0,0.72438]
[1722214928362,0.96964781,68944.0,68943.0,0.725304]
[1722214928363,1.02940222,68944.0,68943.0,0.725304]
[1722214929505,1.17532579,68944.0,68943.0,0.725304]
[1722214929709,1.02940222,68944.0,68943.0,0.725304]
[1722214930568,1.05218354,68944.0,68943.0,0.725304]
[1722214930778,1.05218354,68944.0,68943.0,0.581104]
[1722214931215,1.19802383,68944.0,68943.0,0.581104]
[1722214931635,1.25621483,68944.0,68943.0,0.581104]
[1722214933466,1.17036634,68944.0,68943.0,0.644304]
[1722214933656,1.25570169,68944.0,68943.0,0.644304]
[1722214935334,1.25570169,68944.0,68943.0,0.581104]
[1722214936519,0.8767894,68944.0,68943.0,0.726404]
[1722214936696,0.79145405,68944.0,68943.0,0.726404]
[1722214936892,1.11005527,68944.0,68943.0,0.726404]
[1722214937289,0.87798327,68944.0,68943.0,0.726404]
[1722214937514,1.11005527,68944.0,68943.0,0.726404]
[1722214937986,0.87798327,68944.0,68943.0,0.726404]
[1722214939092,0.87698327,68944.0,68943.0,0.726404]
[1722214939299,0.18421185,68944.0,68943.0,0.95314005]
[1722214939504,0.10323953,68944.0,68943.0,0.99054863]
[1722214939713,0.10323953,68944.0,68943.0,0.95314005]
[1722214939927,0.01771031,68944.0,68943.0,0.95314005]
[1722214940133,0.10403685,68944.0,68943.0,0.95314005]
[1722214940539,0.1040019,68944.0,68943.0,0.95314005]
[1722214942465,0.12678152,68944.0,68943.0,0.95314005]
[1722214942610,0.12678152,68944.0,68943.0,0.879604]
[1722214943010,0.04048993,68944.0,68943.0,0.879604]
[1722214943380,0.04048993,68944.0,68943.0,0.726404]
[1722214943381,0.1263766,68944.0,68943.0,0.726404]
[1722214943904,0.2424126,68944.0,68943.0,0.726404]
[1722214944102,0.25500402,68944.0,68943.0,0.726404]
[1722214944302,0.48707602,68944.0,68943.0,0.726404]
[1722214944532,0.71914802,68944.0,68943.0,0.581104]
[1722214944731,1.09746371,68944.0,68943.0,0.581104]
[1722214944957,0.95122002,68944.0,68943.0,0.581104]
[1722214945373,0.95222002,68944.0,68943.0,0.581104]
[1722214946166,1.18429202,68944.0,68943.0,0.581104]
[1722214946370,1.92807482,68944.0,68943.0,0.581104]
[1722214946717,1.9052952,68944.0,68943.0,0.581104]
[1722214947658,1.7417102,68944.0,68943.0,0.581104]
[1722214947863,1.4360742,68944.0,68943.0,0.581104]
[1722214949479,1.43592035,68944.0,68943.0,0.581104]
[1722214949665,1.83156535,68944.0,68943.0,0.581104]
[1722214949831,1.74666373,68944.0,68943.0,0.581104]
[1722214950182,1.85434304,68944.0,68943.0,0.581104]
[1722214950653,1.78090004,68944.0,68943.0,0.581104]
[1722214951212,1.99019074,68944.0,68943.0,0.581104]
[1722214951388,2.62974474,68944.0,68943.0,0.581104]
[1722214951585,2.65274474,68944.0,68943.0,0.581104]
[1722214951734,2.14679074,68944.0,68943.0,0.581104]
[1722214951948,1.8542088,68944.0,68943.0,0.581104]
[1722214952563,1.76988273,68944.0,68943.0,0.581104]
[1722214952746,1.85419055,68944.0,68943.0,0.581104]
[1722214953144,2.08626255,68944.0,68943.0,0.581104]
[1722214953343,1.95419055,68944.0,68943.0,0.581104]
[1722214953545,1.87483655,68944.0,68943.0,0.581104]
[1722214954420,1.89761827,68944.0,68943.0,0.581104]
[1722214954623,2.08849591,68944.0,68943.0,0.581104]
[1722214955706,2.02260073,68944.0,68943.0,0.581104]
[1722214955909,1.87522404,68944.0,68943.0,0.581104]
[1722214958661,2.10729604,68944.0,68943.0,0.581104]
[1722214959065,2.10778043,68944.0,68943.0,0.581104]
[1722214959263,2.13056218,68944.0,68943.0,0.581104]
[1722214959668,2.13031583,68944.0,68943.0,0.581104]
[1722214959867,1.89824383,68944.0,68943.0,0.581104]
[1722214960830,1.87546208,68944.0,68943.0,0.581104]
[1722214961029,1.05148708,68944.0,68943.0,0.581104]
[1722214961477,2.01484508,68944.0,68943.0,0.581104]
[1722214964795,1.76733308,68944.0,68943.0,0.581104]
[1722214964993,1.73608308,68944.0,68943.0,0.581104]
[1722214965575,1.02857088,68944.0,68943.0,0.6537144]
[1722214966518,1.02857088,68944.0,68943.0,0.581104]
[1722214967137,1.02848789,68944.0,68943.0,0.581104]
[1722214967378,1.02802124,68944.0,68943.0,0.581104]
[1722214967762,1.09282124,68944.0,68943.0,0.581104]
[1722214967977,1.96662324,68944.0,68943.0,0.581104]
[1722214968765,1.88207274,68944.0,68943.0,0.581104]
[1722214968994,1.96632618,68944.0,68943.0,0.581104]
[1722214969417,1.966564,68944.0,68943.0,0.581104]
[1722214970845,1.98934521,68944.0,68943.0,0.581104]
[1722214971141,1.966564,68944.0,68943.0,0.581104]
[1722214972202,1.96655778,68944.0,68943.0,0.581104]
[1722214972406,1.96674611,68944.0,68943.0,0.581104]
[1722214972979,2.22181811,68944.0,68943.0,0.581104]
[1722214973181,2.27181811,68944.0,68943.0,0.581104]
[1722214973395,2.22181811,68944.0,68943.0,0.581104]
[1722214973994,2.30451811,68944.0,68943.0,0.581104]
[1722214974149,4.66333148,68944.0,68943.0,0.581104]
[1722214974354,4.64054911,68944.0,68943.0,0.581104]
[1722214974774,4.66333148,68944.0,68943.0,0.581104]
[1722214975202,4.76630177,68944.0,68943.0,0.581104]
[1722214975407,4.79115787,68944.0,68943.0,0.581104]
[1722214975822,4.7683755,68944.0,68943.0,0.581104]
[1722214976688,4.6856755,68944.0,68943.0,0.581104]
[1722214976887,3.7499915,68944.0,68943.0,0.581104]
[1722214977566,3.4702515,68944.0,68943.0,0.581104]
[1722214978382,3.47080175,68944.0,68943.0,0.581104]
[1722214978881,3.40949744,68944.0,68943.0,0.581104]
[1722214979080,3.36462336,68944.0,68943.0,0.581104]
[1722214979283,3.37360159,68944.0,68943.0,0.581104]
[1722214980081,3.35081913,68944.0,68943.0,0.581104]
[1722214981126,3.3508869,68944.0,68943.0,0.581104]
[1722214982044,3.34190867,68944.0,68943.0,0.581104]
[1722214982257,3.27710867,68944.0,68943.0,0.581104]
[1722214983299,3.27710867,68944.0,68943.0,0.436059]
[1722214983300,4.51965267,68944.0,68943.0,0.436059]
[1722214983589,4.54243624,68944.0,68943.0,0.04576662]
[1722214983780,4.50051649,68944.0,68943.0,0.33585662]
[1722214984036,4.57965729,68944.0,68943.0,0.30928376]
[1722214984242,4.57965729,68944.0,68913.0,0.000924]
[1722214984243,1.045778,68914.0,68913.0,0.000924]
[1722214984447,2.71823703,68914.0,68913.0,0.291144]
[1722214984671,2.24039845,68914.0,68913.0,0.291144]
[1722214984833,2.35810992,68914.0,68913.0,0.291144]
[1722214985508,2.24179892,68914.0,68913.0,0.291144]
[1722214986107,2.32449892,68914.0,68913.0,0.291144]
[1722214986318,2.3339075,68914.0,68913.0,0.291144]
[1722214986515,2.34749892,68914.0,68913.0,0.291144]
[1722214986720,2.23198313,68914.0,68913.0,0.291144]
[1722214986925,2.37153484,68914.0,68913.0,0.291144]
[1722214987120,2.28883484,68914.0,68913.0,0.291144]
[1722214987435,2.2660433,68914.0,68913.0,0.291144]
[1722214988237,2.7550163,68914.0,68913.0,0.291144]
[1722214988435,2.3093643,68914.0,68913.0,0.291144]
[1722214988637,7.94827254,68914.0,68913.0,0.291144]
[1722214988848,7.7472683,68914.0,68913.0,0.291144]
[1722214989459,7.37392664,68914.0,68913.0,0.291144]
[1722214989917,7.27075789,68914.0,68913.0,0.291144]
[1722214990050,7.3742857,68914.0,68913.0,0.291144]
[1722214990251,7.31338705,68914.0,68913.0,0.291144]
[1722214990454,7.38965591,68914.0,68913.0,0.291144]
[1722214990651,7.53556231,68914.0,68913.0,0.291144]
[1722214990903,7.5127688,68914.0,68913.0,0.291144]
[1722214991296,7.3668624,68914.0,68913.0,0.291144]
[1722214991735,7.4668624,68914.0,68913.0,0.291144]
[1722214992128,7.6990354,68914.0,68913.0,0.291144]
[1722214992913,7.6990354,68914.0,68913.0,0.2331]
[1722214993141,7.59613089,68914.0,68913.0,0.08799]
[1722214993297,7.90535127,68914.0,68913.0,0.000924]
[1722214993705,8.20535127,68914.0,68913.0,0.000924]
[1722214993902,8.22814704,68914.0,68913.0,0.000924]
[1722214994346,8.31304945,68914.0,68913.0,0.000924]
[1722214994547,8.02134704,68914.0,68913.0,0.000924]
[1722214995511,7.92134704,68914.0,68913.0,0.000924]
[1722214995689,7.19263004,68914.0,68913.0,0.000924]
[1722214995903,6.87988404,68914.0,68913.0,0.000924]
[1722214996332,6.98426366,68914.0,68913.0,0.000924]
[1722214996622,6.88096815,68914.0,68913.0,0.000924]
[1722214997613,6.88096815,68914.0,68913.0,0.0008384]
[1722214998196,6.98096815,68914.0,68913.0,0.0008384]
[1722214999166,6.98096815,68914.0,68902.0,0.008987]
[1722214999167,1.77295642,68903.0,68902.0,4e-07]
[1722214999374,7.50591232,68903.0,68902.0,0.2902704]
[1722214999591,7.6102358,68903.0,68902.0,0.2902704]
[1722215000005,10.75833695,68903.0,68902.0,0.2902704]
[1722215000211,10.87785534,68903.0,68902.0,0.2902704]
[1722215000353,10.74853731,68903.0,68902.0,0.2902704]
[1722215000557,10.77133381,68903.0,68902.0,0.2902704]
[1722215001143,10.77111615,68903.0,68902.0,0.2902704]
[1722215001294,10.82935515,68903.0,68902.0,0.2902704]
[1722215002176,10.57434655,68903.0,68902.0,0.2902704]
[1722215002321,9.11440855,68903.0,68902.0,0.2902704]
[1722215002722,9.11592147,68903.0,68902.0,0.2902704]
[1722215003313,9.12485026,68903.0,68902.0,0.2902704]
[1722215004164,9.25407412,68903.0,68902.0,0.2902704]
[1722215004361,8.7515086,68903.0,68902.0,0.2902704]
[1722215004744,10.0745086,68903.0,68902.0,0.2902704]
[1722215004913,10.1245086,68903.0,68902.0,0.2902704]
[1722215005113,10.12703043,68903.0,68902.0,0.2902704]
[1722215005310,10.1498304,68903.0,68902.0,0.2902704]
[1722215005509,9.40203043,68903.0,68902.0,0.2902704]
[1722215005705,8.97581222,68903.0,68902.0,0.2902704]
[1722215005910,9.14389187,68903.0,68902.0,0.2902704]
[1722215008027,9.52070187,68903.0,68902.0,0.2322164]
[1722215008237,10.07153941,68903.0,68902.0,0.0580544]
[1722215008463,9.82821303,68903.0,68902.0,0.0580544]
[1722215008877,9.78754406,68903.0,68902.0,0.0580544]
[1722215009080,9.89459836,68903.0,68902.0,4e-07]
[1722215009371,7.68901746,68903.0,68902.0,4e-07]
[1722215009568,7.77939083,68903.0,68902.0,4e-07]
[1722215010777,0.11337376,68882.0,68875.0,0.1472]
[1722215010926,8.85259217,68882.0,68881.0,0.29235]
[1722215011136,9.55866209,68882.0,68881.0,0.29235]
[1722215011357,9.56265508,68882.0,68881.0,0.29235]
[1722215012175,9.61265508,68882.0,68881.0,0.29235]
[1722215012432,9.58545907,68882.0,68881.0,0.29235]
[1722215012989,9.56265508,68882.0,68881.0,0.26954602]
[1722215013152,9.61265508,68882.0,68881.0,0.26954602]
[1722215013356,9.67719478,68882.0,68881.0,0.26954602]
[1722215013576,9.64452116,68882.0,68881.0,0.26954602]
[1722215014213,9.57998146,68882.0,68881.0,0.26954602]
[1722215014474,9.64451813,68882.0,68881.0,0.26954602]
[1722215015011,9.59853884,68882.0,68881.0,0.26954602]
[1722215015212,9.49182233,68882.0,68881.0,0.26954602]
[1722215015586,9.5486091,68882.0,68881.0,0.26954602]
[1722215015862,8.84964101,68882.0,68881.0,0.26954602]
[1722215016066,6.06373035,68882.0,68881.0,0.26954602]
[1722215016484,7.27616135,68882.0,68881.0,0.26954602]
[1722215017042,7.23838194,68882.0,68881.0,0.26954602]
[1722215017653,7.21520706,68882.0,68881.0,0.26954602]
[1722215018227,7.26118635,68882.0,68881.0,0.26954602]
[1722215018560,7.35391176,68882.0,68881.0,0.26954602]
[1722215018761,6.73890976,68882.0,68881.0,0.26954602]
[1722215018985,5.0313496,68882.0,68881.0,0.26954602]
[1722215019187,4.98830697,68882.0,68881.0,0.26954602]
[1722215019389,5.03135747,68882.0,68881.0,0.26954602]
[1722215019588,4.65069564,68882.0,68881.0,0.40994602]
[1722215020272,4.60471635,68882.0,68881.0,0.40994602]
[1722215020811,4.56166585,68882.0,68881.0,0.40994602]
[1722215021202,4.62622064,68882.0,68881.0,0.40994602]
[1722215021424,4.62622064,68882.0,68881.0,0.26954602]
[1722215021641,4.45552927,68882.0,68881.0,0.26954602]
[1722215022030,2.77359881,68882.0,68881.0,0.41824602]
[1722215022296,1.23089957,68882.0,68881.0,0.41824602]
[1722215023915,1.23089957,68882.0,68881.0,0.41917002]
[1722215024385,0.66258481,68882.0,68881.0,0.41917002]
[1722215024617,0.61950757,68882.0,68881.0,0.41917002]
[1722215024847,0.8909977,68882.0,68881.0,0.41917002]
[1722215025097,0.60954872,68882.0,68881.0,0.41917002]
[1722215025301,0.16112772,68882.0,68881.0,0.46108702]
[1722215025473,0.16364797,68882.0,68881.0,0.53621681]
[1722215025693,0.14084356,68882.0,68881.0,0.53621681]
[1722215025863,0.14084356,68882.0,68881.0,0.53192605]
[1722215026255,0.14084356,68882.0,68881.0,0.68502605]
[1722215026861,0.12684356,68882.0,68881.0,0.68502605]
[1722215027062,0.12784356,68882.0,68881.0,0.69002605]
[1722215027268,0.12784356,68882.0,68881.0,0.57727002]
[1722215027507,0.08987354,68882.0,68881.0,0.60454449]
[1722215027769,0.12814681,68882.0,68881.0,0.60454449]
[1722215027977,0.12771734,68882.0,68881.0,0.60454449]
[1722215028183,0.12771734,68882.0,68881.0,0.57727002]
[1722215028314,0.13484711,68882.0,68881.0,0.57727002]
[1722215028542,0.12771009,68882.0,68881.0,0.57727002]
[1722215028990,0.07687776,68882.0,68881.0,0.57727002]
[1722215029234,0.07687776,68882.0,68881.0,0.61489626]
[1722215029513,0.07687776,68882.0,68881.0,0.84028562]
[1722215029722,0.07687776,68882.0,68881.0,0.84995005]
[1722215029974,0.07587776,68882.0,68881.0,1.75794405]
[1722215030237,0.04323702,68892.0,68891.0,0.1531]
[1722215030461,0.04328997,68894.0,68893.0,0.1453]
[1722215030676,0.04328997,68895.0,68894.0,0.1453]
[1722215030888,0.04329,68895.0,68894.0,0.38659498]
[1722215031097,0.064935,68897.0,68895.0,0.0621]
[1722215031321,0.064935,68897.0,68896.0,0.6034761]
[1722215032397,0.08658,68899.0,68897.0,0.0655]
[1722215032604,0.08658,68899.0,68896.0,0.5376761]
[1722215032605,0.06494681,68900.0,68898.0,0.31108]
[1722215032810,0.06494681,68900.0,68899.0,0.0652]
[1722215033021,0.06494681,68901.0,68899.0,0.38600728]
[1722215033256,0.18105581,68901.0,68899.0,0.37628]
[1722215033457,0.06494007,68901.0,68900.0,0.06116466]
[1722215033674,0.24459076,68901.0,68900.0,0.37224466]
[1722215033886,0.24459076,68901.0,68900.0,0.45234466]
[1722215033887,0.4303705,68901.0,68900.0,0.45234466]
[1722215034082,0.68423251,68901.0,68900.0,0.39318]
[1722215034480,0.3437905,68901.0,68900.0,0.39318]
[1722215035133,0.3467905,68901.0,68900.0,0.39318]
[1722215035655,0.3467905,68901.0,68900.0,0.68345]
[1722215037073,0.3695857,68901.0,68900.0,0.68345]
[1722215037292,0.3467905,68901.0,68900.0,0.68345]
[1722215038083,0.38142204,68901.0,68900.0,0.68345]
[1722215038287,0.37842204,68901.0,68900.0,0.68345]
[1722215038678,0.40121716,68901.0,68900.0,0.68345]
[1722215038881,0.63343416,68901.0,68900.0,0.68345]
[1722215039220,0.6210604,68901.0,68900.0,0.68345]
[1722215039439,0.63343416,68901.0,68900.0,0.68345]
[1722215039810,0.63543416,68901.0,68900.0,0.68345]
[1722215040013,0.59260716,68901.0,68900.0,0.68345]
[1722215040215,0.63860497,68901.0,68900.0,0.68345]
[1722215040423,0.87115094,68901.0,68900.0,0.68345]
[1722215040619,0.63893394,68901.0,68900.0,0.68345]
[1722215040806,0.87115094,68901.0,68900.0,0.68345]
[1722215041408,0.87215094,68901.0,68900.0,0.68345]
[1722215041878,0.87115094,68901.0,68900.0,0.68345]
[1722215042042,0.62656018,68901.0,68900.0,0.68345]
[1722215042254,0.45950818,68901.0,68900.0,0.758315]
[1722215042430,0.69172518,68901.0,68900.0,0.758315]
[1722215042625,0.36621186,68901.0,68900.0,0.758315]
[1722215042829,0.46980321,68901.0,68900.0,0.758315]
[1722215043026,0.70202021,68901.0,68900.0,0.758315]
[1722215043226,0.46980321,68901.0,68900.0,0.758315]
[1722215043429,0.70202021,68901.0,68900.0,0.758315]
[1722215043635,0.71439397,68901.0,68900.0,0.68345]
[1722215043832,0.86050105,68901.0,68900.0,0.68345]
[1722215045057,0.71439397,68901.0,68900.0,0.68345]
[1722215045258,0.71539397,68901.0,68900.0,0.68345]
[1722215045659,0.71439397,68901.0,68900.0,0.68345]
[1722215045876,0.7143609,68901.0,68900.0,0.68345]
[1722215046286,0.36621186,68901.0,68900.0,0.83370957]
[1722215046438,0.44695813,68901.0,68900.0,0.83370957]
[1722215047814,0.67917513,68901.0,68900.0,0.83370957]
[1722215048009,0.44695813,68901.0,68900.0,0.83370957]
[1722215048226,0.67917513,68901.0,68900.0,0.83370957]
[1722215048630,0.67917513,68901.0,68900.0,0.68345]
[1722215048953,0.44719974,68901.0,68900.0,0.68345]
[1722215049286,0.67941674,68901.0,68900.0,0.68345]
[1722215049469,1.5301715,68901.0,68900.0,0.60135]
[1722215049673,2.2727015,68901.0,68900.0,0.60135]
[1722215049893,2.41849665,68901.0,68900.0,0.60135]
[1722215052134,2.31471365,68901.0,68900.0,0.60135]
[1722215052303,2.41741912,68901.0,68900.0,0.60135]
[1722215053101,2.64963612,68901.0,68900.0,0.60135]
[1722215053256,2.41741912,68901.0,68900.0,0.60135]
[1722215053696,2.64963612,68901.0,68900.0,0.60135]
[1722215053847,2.41741912,68901.0,68900.0,0.60135]
[1722215054253,2.41741912,68901.0,68900.0,0.65344726]
[1722215054498,2.41741912,68901.0,68900.0,0.60135]
[1722215054868,2.41541912,68901.0,68900.0,0.60135]
[1722215055307,2.32471365,68901.0,68900.0,0.60235]
[1722215055513,2.4157842,68901.0,68900.0,0.60135]
[1722215055942,2.4157842,68901.0,68900.0,0.60235]
[1722215055943,2.39492562,68901.0,68900.0,0.60235]
[1722215056155,2.66200632,68901.0,68900.0,0.60235]
[1722215058090,2.64800632,68901.0,68900.0,0.60135]
[1722215058350,2.66200632,68901.0,68900.0,0.60135]
[1722215058551,2.66173031,68901.0,68900.0,0.60135]
[1722215059113,2.62493516,68901.0,68900.0,0.60135]
[1722215059341,2.63893516,68901.0,68900.0,0.60135]